bitfinex/quotes_ETHUSD_20240917
["timestamp","ask_amount","ask_price","bid_price","bid_amount"]
[1726568320670,4.31001,2320.2,2319.8,4.39690459]
[1726568320940,4.31001,2320.2,2319.8,0.08620459]
[1726568321088,4.31018,2320.1,2319.8,0.08620459]
[1726568321878,4.31001,2320.2,2319.8,0.08620459]
[1726568322056,2.2522,2320.1,2319.8,0.08620459]
[1726568322388,2.2522,2320.1,2319.8,4.39689473]
[1726568322544,2.2522,2320.1,2319.9,5.22516842]
[1726568322749,2.2522,2320.1,2319.9,0.91473842]
[1726568323295,0.45151254,2320.8,2320.0,2.34680465]
[1726568323494,0.0388433,2321.6,2320.6,4.11832714]
[1726568323644,0.45137202,2321.4,2320.9,0.55]
[1726568323844,0.45137202,2321.4,2321.3,4.30793]
[1726568324064,0.0388433,2321.6,2321.4,4.30761]
[1726568324289,0.0388433,2321.6,2321.3,4.30793]
[1726568324455,0.0388433,2321.6,2321.3,8.61566]
[1726568324664,0.0388433,2321.6,2321.3,4.30781]
[1726568325792,0.0388433,2321.6,2321.3,8.61563]
[1726568326200,0.0388433,2321.6,2321.3,8.61564]
[1726568326570,0.0388433,2321.6,2321.3,8.61563]
[1726568326769,0.0388433,2321.6,2321.4,4.30772]
[1726568327594,0.0388433,2321.6,2321.3,4.30781]
[1726568327903,5.30603963,2321.6,2321.1,4.30816]
[1726568328072,5.30603963,2321.6,2321.1,8.61635]
[1726568328277,5.30603963,2321.6,2321.2,4.30809]
[1726568328588,5.30603963,2321.6,2321.1,4.30816]
[1726568328905,3.99864963,2321.6,2321.2,4.3081]
[1726568329055,1.05581796,2321.5,2321.2,4.3081]
[1726568329382,1.05581796,2321.5,2321.1,4.30827]
[1726568329697,5.36337796,2321.5,2321.1,4.30827]
[1726568329891,5.36337796,2321.5,2321.1,2.0]
[1726568329892,4.30819,2321.2,2321.1,2.0]
[1726568330101,5.271949,2321.2,2321.1,2.0]
[1726568330401,9.580139,2321.2,2321.1,2.0]
[1726568330707,8.271949,2321.2,2321.1,2.0]
[1726568331174,12.580059,2321.2,2321.1,2.0]
[1726568332262,19.264069,2321.2,2321.1,2.0]
[1726568333994,14.955879,2321.2,2321.1,2.0]
[1726568334298,19.263989,2321.2,2321.1,2.0]
[1726568334531,14.955879,2321.2,2321.1,2.0]
[1726568334668,19.263989,2321.2,2321.1,2.0]
[1726568336067,14.955879,2321.2,2321.1,2.0]
[1726568336502,19.263989,2321.2,2321.1,2.0]
[1726568336808,14.955879,2321.2,2321.1,2.0]
[1726568337302,2.3759,2321.2,2321.1,2.0]
[1726568337504,1.05581796,2321.5,2321.1,2.0]
[1726568337505,4.30778,2321.4,2321.1,2.0]
[1726568337663,4.30801,2321.3,2321.1,2.0]
[1726568337864,4.30811,2321.2,2321.1,2.0]
[1726568338668,4.30801,2321.3,2321.1,2.0]
[1726568338863,3.0,2321.2,2321.1,2.0]
[1726568339060,7.30811,2321.2,2321.1,2.0]
[1726568342314,17.085942,2321.2,2321.1,2.0]
[1726568342504,19.344742,2321.2,2321.1,2.0]
[1726568342910,24.202852,2321.2,2321.1,2.0]
[1726568344141,28.510962,2321.2,2321.1,2.0]
[1726568344329,2.3799,2320.4,2319.7,2.369]
[1726568344532,4.31052,2320.0,2319.7,2.369]
[1726568344711,4.31042,2320.0,2319.7,2.369]
[1726568345231,4.31055,2319.9,2319.3,6.79842]
[1726568345400,7.31024,2320.1,2319.7,4.3109]
[1726568345603,7.31024,2320.1,2319.4,0.08621437]
[1726568345604,4.31035,2320.0,2319.5,8.62234]
[1726568345805,4.31035,2320.0,2319.6,0.08620698]
[1726568346031,4.31035,2320.0,2319.5,9.82809512]
[1726568346249,4.31035,2320.0,2319.6,4.31106]
[1726568346548,4.31035,2320.0,2319.6,4.39727209]
[1726568347353,4.31063,2319.9,2319.4,0.0862121]
[1726568347518,4.31063,2319.9,2319.6,0.158]
[1726568347519,4.3108,2319.8,2319.6,0.158]
[1726568347719,4.31063,2319.9,2319.6,0.158]
[1726568347720,8.62129,2319.9,2319.6,0.158]
[1726568347954,4.31063,2319.9,2319.6,0.158]
[1726568348255,8.62129,2319.9,2319.6,0.158]
[1726568348417,4.31063,2319.9,2319.6,0.158]
[1726568348617,8.62126,2319.9,2319.6,0.158]
[1726568348915,4.3109,2319.7,2319.6,0.158]
[1726568349912,7.3109,2319.7,2319.6,0.158]
[1726568350117,11.6218,2319.7,2319.6,0.158]
[1726568350431,8.713043,2319.7,2319.6,0.158]
[1726568350636,3.0,2319.7,2319.6,0.158]
[1726568350993,7.3109,2319.7,2319.6,0.158]
[1726568351456,11.6218,2319.7,2319.6,0.158]
[1726568354551,18.2001,2319.7,2319.6,0.158]
[1726568354765,13.8892,2319.7,2319.6,0.158]
[1726568354955,20.41752996,2319.7,2319.6,0.158]
[1726568355147,16.10662996,2319.7,2319.6,0.158]
[1726568356493,4.30983,2320.3,2319.6,4.46898]
[1726568356687,4.30961,2320.4,2319.9,2.4576]
[1726568356844,4.30983,2320.3,2319.9,2.4576]
[1726568357176,8.61971,2320.3,2319.9,2.54380067]
[1726568357339,4.30983,2320.3,2319.9,2.54380067]
[1726568357540,0.45158319,2320.4,2319.9,6.85419067]
[1726568357840,0.45158319,2320.4,2320.0,4.31024]
[1726568358040,7.76130319,2320.4,2320.0,0.08619585]
[1726568358286,0.45158319,2320.4,2320.3,4.30978]
[1726568358516,4.30821,2321.2,2320.5,6.69836]
[1726568358785,0.45143046,2321.2,2320.8,4.30881]
[1726568358966,4.30757,2321.5,2321.0,4.30838]
[1726568359466,4.30779,2321.4,2320.9,0.0861627]
[1726568359784,5.40487133,2321.4,2320.9,4.30866]
[1726568360173,4.30779,2321.4,2320.9,4.30866]
[1726568360680,4.30757,2321.5,2321.1,4.30821]
[1726568360681,3.0,2321.5,2321.1,4.30821]
[1726568361652,3.0,2321.3,2321.0,2.253]
[1726568362793,3.0,2321.3,2320.7,6.7444]
[1726568362794,4.30812,2321.2,2320.7,6.7444]
[1726568363284,4.30812,2321.2,2320.7,11.05336]
[1726568363444,4.30812,2321.2,2320.7,6.7444]
[1726568363644,4.30812,2321.2,2320.8,4.30883]
[1726568364744,4.30812,2321.2,2320.7,6.7444]
[1726568365059,4.30812,2321.2,2320.8,4.39499545]
[1726568365445,3.0,2321.3,2321.0,4.30847]
[1726568366019,3.0,2321.5,2321.1,4.3082]
[1726568366186,0.0388433,2321.6,2321.4,4.30773]
[1726568366677,0.0388433,2321.6,2321.3,4.30776]
[1726568366878,0.0388433,2321.6,2321.2,0.08614651]
[1726568367182,4.30772,2321.5,2321.1,0.08614873]
[1726568367386,4.30772,2321.5,2321.0,2.392]
[1726568367387,3.0,2321.3,2321.0,2.392]
[1726568367681,4.30823,2321.2,2320.8,4.30878]
[1726568368353,8.61611,2321.3,2320.8,4.30878]
[1726568368858,3.23739533,2321.5,2320.7,6.63751]
[1726568368859,4.30821,2321.2,2320.7,6.63751]
[1726568369242,4.30821,2321.2,2320.7,6.72367443]
[1726568369794,4.30821,2321.2,2320.7,6.63751]
[1726568370148,14.8162333,2321.6,2321.2,4.308]
[1726568370149,0.0388433,2321.6,2321.2,4.308]
[1726568370507,0.0388433,2321.6,2321.5,10.9587]
[1726568370808,0.0388433,2321.6,2321.5,15.26625]
[1726568371297,0.0388433,2321.6,2321.5,10.9587]
[1726568371457,0.0388433,2321.6,2321.5,12.48535]
[1726568372280,0.0388433,2321.6,2321.5,6.65115]
[1726568372600,0.0388433,2321.6,2321.5,2.3436]
[1726568373078,0.0388433,2321.6,2321.4,8.61528]
[1726568373255,0.0388433,2321.6,2321.5,4.30755]
[1726568373454,0.0388433,2321.6,2321.5,11.1067]
[1726568373650,0.0388433,2321.6,2321.5,12.22598382]
[1726568381594,0.0388433,2321.6,2321.5,7.91843382]
[1726568381776,0.0388433,2321.6,2321.5,8.00456579]
[1726568381977,0.0388433,2321.6,2321.5,12.31211579]
[1726568385435,0.0388433,2321.6,2321.5,0.08613197]
[1726568385747,6.75278,2321.5,2321.1,4.30823]
[1726568385944,0.0388433,2321.6,2321.2,4.39416339]
[1726568386110,0.0388433,2321.6,2321.4,4.30767]
[1726568386530,0.0388433,2321.6,2321.5,4.39369129]
[1726568389513,0.0388433,2321.6,2321.4,4.30766]
[1726568391040,0.0388433,2321.6,2321.3,4.30781]
[1726568391233,4.3462433,2321.6,2321.1,2.3877]
[1726568391416,6.6600433,2321.6,2321.2,4.39417685]
[1726568391607,7.75676863,2321.6,2321.2,4.39417685]
[1726568391945,7.75676863,2321.6,2321.2,4.30803]
[1726568392503,4.30758,2321.5,2321.1,4.39440878]
[1726568396342,4.30758,2321.5,2321.1,4.30829]
[1726568396605,5.51401186,2321.5,2321.0,4.30837]
[1726568396922,4.30783,2321.4,2321.0,4.39452345]
[1726568397120,4.30798,2321.3,2320.9,6.59267]
[1726568397508,4.30798,2321.3,2320.8,8.61744]
[1726568397509,8.61608,2321.3,2320.8,8.61744]
[1726568397704,4.30798,2321.3,2320.8,8.61747]
[1726568398011,6.64285,2321.2,2320.8,4.30871]
[1726568398207,6.64285,2321.2,2320.8,4.3948719]
[1726568398857,2.3347,2321.2,2320.9,4.30864]
[1726568399248,4.30795,2321.3,2320.9,4.39480186]
[1726568399404,6.71871,2321.5,2321.1,4.30825]
[1726568399609,4.3462533,2321.6,2321.2,4.39415304]
[1726568399872,3.0388433,2321.6,2321.3,4.39407155]
[1726568400473,3.0388433,2321.6,2321.5,4.30755]
[1726568400474,0.0388433,2321.6,2321.5,4.30755]
[1726568400657,0.0388433,2321.6,2321.5,11.12973233]
[1726568400969,0.0388433,2321.6,2321.5,15.98728233]
[1726568401175,0.0388433,2321.6,2321.5,11.67973233]
[1726568401327,0.0388433,2321.6,2321.5,12.88309028]
[1726568401760,0.0388433,2321.6,2321.5,10.45459028]
[1726568401975,0.0388433,2321.6,2321.5,8.70123233]
[1726568404269,0.0388433,2321.6,2321.5,9.25123233]
[1726568406030,0.0388433,2321.6,2321.5,9.1651]
[1726568408745,0.0388433,2321.6,2321.5,13.47265]
[1726568408946,0.0388433,2321.6,2321.5,15.77015]
[1726568409149,0.0388433,2321.6,2321.5,12.64424072]
[1726568409681,0.0388433,2321.6,2321.5,4.30755]
[1726568409840,0.0388433,2321.6,2321.5,4.39368475]
[1726568410769,0.0388433,2321.6,2321.5,8.70123475]
[1726568410974,0.0388433,2321.6,2321.5,4.39368475]
[1726568412285,0.0388433,2321.6,2321.5,8.70123475]
[1726568412662,0.0388433,2321.6,2321.5,10.27380622]
[1726568413362,0.0388433,2321.6,2321.5,4.39368475]
[1726568413689,0.0388433,2321.6,2321.4,4.30765]
[1726568413836,0.0388433,2321.6,2321.4,4.39378777]
[1726568414038,0.0388433,2321.6,2321.3,4.39403122]
[1726568414458,0.0388433,2321.6,2321.3,8.70183122]
[1726568414895,0.0388433,2321.6,2321.3,4.39394122]
[1726568415748,0.0388433,2321.6,2320.9,12.08184]
[1726568415749,1.14046563,2321.6,2320.9,7.7732]
[1726568416086,4.30763,2321.5,2321.1,4.30829]
[1726568416285,0.0388433,2321.6,2320.9,4.74185]
[1726568416444,0.0388433,2321.6,2320.8,4.30878]
[1726568416445,4.30809,2321.3,2320.8,4.30878]
[1726568416639,4.739009,2321.2,2320.8,4.39494159]
[1726568416845,4.30843,2321.1,2320.7,4.30896]
[1726568417052,2.306,2321.0,2320.7,4.30896]
[1726568417253,2.306,2321.0,2320.6,4.30913]
[1726568417452,10.92307,2321.0,2320.6,4.30913]
[1726568417782,6.61449,2321.0,2320.6,4.30913]
[1726568418078,4.3087,2320.9,2320.6,0.08616766]
[1726568418279,6.61449,2321.0,2320.4,4.30943]
[1726568418280,7.706764,2321.0,2320.4,4.30943]
[1726568418438,4.30869,2320.9,2320.4,4.30943]
[1726568419154,4.30869,2320.9,2320.4,8.61894]
[1726568419351,4.30869,2320.9,2320.4,4.30943]
[1726568419543,4.30904,2320.7,2320.2,4.30987]
[1726568419742,4.30904,2320.7,2320.3,0.08618684]
[1726568419743,6.71074,2320.6,2320.3,0.08618684]
[1726568420249,6.71063,2320.6,2320.3,0.08618684]
[1726568420799,6.71063,2320.6,2320.2,0.08618669]
[1726568421462,6.71063,2320.6,2320.2,4.39613669]
[1726568421463,2.4014,2320.6,2320.2,4.39613669]
[1726568421670,2.4014,2320.6,2320.3,0.08618672]
[1726568422899,6.71067,2320.6,2320.3,0.08618672]
[1726568423197,2.4014,2320.6,2320.0,4.31019]
[1726568423491,6.71073,2320.6,2320.1,4.39634086]
[1726568424049,4.30949,2320.5,2320.1,0.08619086]
[1726568424796,4.30949,2320.5,2320.1,4.39634086]
[1726568425365,6.71065,2320.6,2320.2,4.30995]
[1726568426469,2.4014,2320.6,2320.3,4.39594092]
[1726568426671,2.4014,2320.6,2320.3,4.30975]
[1726568426877,5.5103154,2320.9,2320.4,4.39565648]
[1726568426878,7.30888,2320.8,2320.4,4.39565648]
[1726568427258,7.30871,2320.9,2320.4,4.39565648]
[1726568427785,7.30871,2320.9,2320.5,4.30941]
[1726568427996,7.30871,2320.9,2320.5,4.39558746]
[1726568428301,4.30886,2320.8,2320.4,4.30947]
[1726568429490,4.30886,2320.8,2320.4,8.61898]
[1726568429662,4.30886,2320.8,2320.4,4.30947]
[1726568431527,7.3088,2320.9,2320.4,4.30959]
[1726568431687,4.30888,2320.8,2320.4,4.30959]
[1726568431882,4.30905,2320.7,2320.3,4.39586985]
[1726568432222,4.39897991,2320.7,2320.3,4.39586985]
[1726568432389,4.39897991,2320.7,2320.4,4.30959]
[1726568432390,0.08993991,2320.7,2320.4,4.30959]
[1726568432726,4.30888,2320.8,2320.4,4.30959]
[1726568432921,0.08992971,2320.6,2320.4,4.30959]
[1726568433215,0.08991951,2320.5,2320.4,7.75529871]
[1726568433415,4.30888,2320.8,2320.4,6.89337071]
[1726568433661,0.08989949,2320.5,2320.4,6.89337071]
[1726568433828,4.30888,2320.8,2320.4,6.89337071]
[1726568434131,0.0899115,2320.5,2320.4,6.89337071]
[1726568434288,4.30888,2320.8,2320.4,6.89337071]
[1726568434849,0.0899319,2320.7,2320.4,6.89337071]
[1726568435116,4.30888,2320.8,2320.4,6.89337071]
[1726568435322,0.08989954,2320.6,2320.4,6.89337071]
[1726568435527,4.30888,2320.8,2320.4,6.89337071]
[1726568435709,0.08988934,2320.5,2320.4,6.89337071]
[1726568435912,4.30888,2320.8,2320.4,6.89337071]
[1726568436092,0.08988934,2320.5,2320.4,6.89337071]
[1726568436278,4.30888,2320.8,2320.4,4.30959]
[1726568436481,0.08987604,2320.5,2320.4,4.30959]
[1726568436678,11.61745,2320.9,2320.5,4.3094]
[1726568437125,7.30867,2320.9,2320.5,4.3094]
[1726568437302,4.30887,2320.8,2320.5,4.3094]
[1726568437529,7.30867,2320.9,2320.5,4.3094]
[1726568437931,4.30887,2320.8,2320.4,4.30955]
[1726568438530,4.30887,2320.8,2320.4,4.3957308]
[1726568439043,4.30904,2320.7,2320.3,4.30974]
[1726568439246,4.30904,2320.7,2320.3,4.39592094]
[1726568439800,2.3186,2320.6,2320.3,4.39592094]
[1726568440213,2.3186,2320.6,2320.4,4.30958]
[1726568442345,2.3009,2320.8,2320.5,4.30941]
[1726568442839,4.30888,2320.8,2320.4,4.30955]
[1726568443045,4.30888,2320.8,2320.4,4.39573093]
[1726568445519,4.30888,2320.8,2320.2,4.30982]
[1726568445520,4.78353755,2320.8,2320.2,4.30982]
[1726568445828,6.68162,2320.6,2320.2,4.30982]
[1726568446751,6.68162,2320.6,2320.2,8.61971]
[1726568447109,2.3723,2320.6,2320.3,4.30961]
[1726568448950,4.30924,2320.6,2320.2,4.30992]
[1726568449360,4.30905,2320.7,2320.3,4.30976]
[1726568451114,0.08985605,2320.6,2320.3,4.30976]
[1726568452908,0.08985605,2320.6,2320.2,4.30994]
[1726568453111,4.39916605,2320.6,2320.2,4.30994]
[1726568454260,0.08985605,2320.6,2320.2,8.61978]
[1726568454459,4.39909605,2320.6,2320.2,4.30984]
[1726568454624,0.08985605,2320.6,2320.3,4.30974]
[1726568455653,0.08985605,2320.6,2320.3,4.30971]
[1726568456717,1.06096591,2320.6,2320.2,4.30994]
[1726568457251,5.37020591,2320.6,2320.2,4.30994]
[1726568457619,1.06096591,2320.6,2320.3,4.30974]
[1726568457823,0.08985605,2320.6,2320.3,4.30974]
[1726568458023,0.08985605,2320.6,2320.2,4.30994]
[1726568458345,4.39916605,2320.6,2320.2,4.30994]
[1726568458544,2.2732,2320.5,2320.2,4.30994]
[1726568458964,0.08911692,2320.4,2320.1,4.31013]
[1726568459166,0.08911692,2320.4,2319.8,2.4573]
[1726568459333,0.08911692,2320.4,2320.0,4.31019]
[1726568459534,0.08911692,2320.4,2320.0,8.62039]
[1726568459862,4.30992,2320.3,2319.9,4.31049]
[1726568460066,4.30992,2320.3,2319.7,4.31079]
[1726568460067,4.3102,2320.1,2319.7,4.31079]
[1726568460273,4.74990369,2320.2,2319.7,4.31076]
[1726568460274,9.14905529,2320.2,2319.7,4.31076]
[1726568460431,0.08899798,2320.0,2319.7,8.62156]
[1726568460634,6.62818,2320.1,2319.7,4.31076]
[1726568460955,0.08898778,2319.9,2319.7,4.31076]
[1726568461168,6.62818,2320.1,2319.7,4.31076]
[1726568461328,0.08897313,2319.8,2319.6,4.46904]
[1726568461668,0.0888447,2319.7,2319.6,4.46904]
[1726568461880,4.31036,2320.0,2319.6,4.46904]
[1726568462178,0.08864953,2319.7,2319.6,0.158]
[1726568462328,6.6288,2319.7,2319.6,0.158]
[1726568462527,6.71742291,2319.7,2319.6,0.158]
[1726568462729,11.02832291,2319.7,2319.6,0.158]
[1726568463075,14.02832291,2319.7,2319.6,0.158]
[1726568463231,16.1968678,2319.7,2319.6,0.158]
[1726568473743,11.8859678,2319.7,2319.6,0.158]
[1726568474789,0.08862291,2319.7,2319.6,0.158]
[1726568475299,0.087829,2319.7,2319.6,0.158]
[1726568475677,9.71254,2319.9,2319.6,0.158]
[1726568475995,0.08786896,2319.7,2319.6,0.158]
[1726568476296,0.08786896,2319.7,2319.6,4.46908]
[1726568476498,5.4019,2319.9,2319.6,4.46908]
[1726568476700,0.0879622,2319.7,2319.6,4.46908]
[1726568476994,5.4019,2319.9,2319.6,4.46908]
[1726568477191,0.0879622,2319.7,2319.6,4.46908]
[1726568477399,9.71244,2319.9,2319.6,0.158]
[1726568477596,0.08794575,2319.7,2319.6,0.158]
[1726568477768,9.71244,2319.9,2319.6,0.158]
[1726568477971,0.08795819,2319.7,2319.6,0.158]
[1726568478294,0.08797151,2319.7,2319.6,0.158]
[1726568478497,9.71244,2319.9,2319.6,0.158]
[1726568478798,0.08797151,2319.7,2319.6,0.158]
[1726568479095,0.08800617,2319.7,2319.6,0.158]
[1726568479309,4.31074,2319.8,2319.6,0.158]
[1726568479468,0.08510096,2319.7,2319.6,0.158]
[1726568479870,4.31074,2319.8,2319.6,0.158]
[1726568480078,0.08511341,2319.7,2319.6,0.158]
[1726568480459,4.31074,2319.8,2319.6,0.158]
[1726568480800,0.08511341,2319.7,2319.6,0.158]
[1726568481224,4.31074,2319.8,2319.6,0.158]
[1726568481367,0.08511341,2319.7,2319.6,0.158]
[1726568481696,4.31074,2319.8,2319.6,0.158]
[1726568481898,0.08511341,2319.7,2319.6,0.158]
[1726568482262,4.31074,2319.8,2319.6,0.158]
[1726568482567,0.08511341,2319.7,2319.6,0.158]
[1726568482895,4.3109,2319.7,2319.6,0.158]
[1726568483073,8.21988086,2319.7,2319.6,0.158]
[1726568487711,15.53078086,2319.7,2319.6,0.158]
[1726568487905,19.84168086,2319.7,2319.6,0.158]
[1726568490377,15.53078086,2319.7,2319.6,0.158]
[1726568493587,11.21988086,2319.7,2319.6,0.158]
[1726568494249,15.53078086,2319.7,2319.6,0.158]
[1726568495486,11.21988086,2319.7,2319.6,0.158]
[1726568496192,15.53078086,2319.7,2319.6,0.158]
[1726568499065,11.21988086,2319.7,2319.6,0.158]
[1726568499265,15.53078086,2319.7,2319.6,0.158]
[1726568499892,13.04728086,2319.7,2319.6,0.158]
[1726568500454,8.73638086,2319.7,2319.6,0.158]
[1726568500666,13.04728086,2319.7,2319.6,0.158]
[1726568503801,8.73638086,2319.7,2319.6,0.158]
[1726568503955,7.39601341,2319.7,2319.6,0.158]
[1726568504365,0.08511341,2319.7,2319.6,0.158]
[1726568504699,7.76188148,2319.8,2319.6,0.158]
[1726568504893,0.45102148,2319.8,2319.7,2.4805]
[1726568505305,8.62098,2320.0,2319.7,2.4805]
[1726568505996,10.16672529,2320.0,2319.7,2.4805]
[1726568506371,3.0,2319.9,2319.7,2.4805]
[1726568508662,7.31056,2319.9,2319.7,2.4805]
[1726568511197,0.08488346,2319.8,2319.7,2.4805]
[1726568518579,0.08488346,2319.8,2319.6,0.158]
[1726568523617,0.08488346,2319.8,2319.6,4.46901]
[1726568524026,0.08488346,2319.8,2319.6,0.158]
[1726568528735,0.08488346,2319.8,2319.6,0.1570346]
[1726568530203,0.08488346,2319.8,2319.7,6.7367]
[1726568530403,0.08488346,2319.8,2319.7,2.4258]
[1726568530608,7.3104,2320.0,2319.7,2.4258]
[1726568531242,0.08516321,2319.9,2319.7,6.7367]
[1726568531536,0.08516321,2319.9,2319.7,2.4258]
[1726568531929,0.08516321,2319.9,2319.7,6.73668]
[1726568533630,12.07154662,2320.1,2319.7,6.73668]
[1726568533802,0.08516187,2319.8,2319.7,6.73668]
[1726568534001,4.31038,2320.0,2319.7,6.73668]
[1726568534213,0.08516187,2319.8,2319.7,6.73668]
[1726568534430,4.31038,2320.0,2319.7,6.73668]
[1726568534632,0.08516187,2319.8,2319.7,6.73668]
[1726568534801,4.31038,2320.0,2319.7,6.73668]
[1726568535363,0.08517207,2319.9,2319.7,6.73668]
[1726568535659,0.08517207,2319.9,2319.7,6.89468]
[1726568536018,0.08517207,2319.9,2319.7,2.5838]
[1726568536657,0.08517207,2319.9,2319.7,0.158]
[1726568541772,0.08517207,2319.9,2319.7,4.46886]
[1726568542181,0.08517207,2319.9,2319.7,0.158]
[1726568543785,0.08517207,2319.9,2319.7,4.46887]
[1726568544457,0.08517207,2319.9,2319.7,0.158]
[1726568546580,4.39572207,2319.9,2319.7,0.158]
[1726568548572,0.08517207,2319.9,2319.7,0.158]
[1726568550300,1.61817755,2319.9,2319.7,0.158]
[1726568550583,1.54570662,2319.8,2319.7,0.158]
[1726568550886,1.63107063,2319.8,2319.7,0.158]
[1726568551082,0.08536401,2319.8,2319.7,0.158]
[1726568554980,15.66999063,2319.8,2319.7,0.158]
[1726568555175,26.02674572,2319.8,2319.7,0.158]
[1726568555389,22.85297361,2319.8,2319.7,0.158]
[1726568555575,22.31837745,2319.8,2319.7,0.158]
[1726568556669,26.06764543,2319.8,2319.7,0.158]
[1726568557284,22.31837745,2319.8,2319.7,0.158]
[1726568558021,26.06764543,2319.8,2319.7,0.158]
[1726568558678,22.31837745,2319.8,2319.7,0.158]
[1726568563614,26.06617265,2319.8,2319.7,0.158]
[1726568564599,17.79225603,2319.8,2319.7,0.158]
[1726568564904,0.08536401,2319.8,2319.7,2.5084]
[1726568565507,4.31043,2320.0,2319.7,2.5084]
[1726568565677,0.07933129,2319.8,2319.7,2.5084]
[1726568565989,0.07933948,2319.8,2319.7,2.5084]
[1726568567007,7.31037,2320.0,2319.7,2.5084]
[1726568567229,0.07953082,2319.8,2319.7,2.5084]
[1726568567409,7.31037,2320.0,2319.7,2.5084]
[1726568567583,0.07953082,2319.8,2319.7,2.5084]
[1726568567785,7.31037,2320.0,2319.7,2.5084]
[1726568567786,3.0,2320.0,2319.7,2.5084]
[1726568568028,0.07957077,2319.8,2319.7,2.5084]
[1726568568197,3.0,2320.0,2319.7,2.5084]
[1726568568397,0.07955745,2319.8,2319.7,2.5084]
[1726568568618,7.31037,2320.0,2319.7,2.5084]
[1726568568811,0.07955062,2319.8,2319.7,2.5084]
[1726568569013,7.31037,2320.0,2319.7,2.5084]
[1726568569217,0.07955062,2319.8,2319.7,2.5084]
[1726568569391,7.31037,2320.0,2319.7,2.5084]
[1726568569592,0.07955062,2319.8,2319.7,2.5084]
[1726568569790,7.31037,2320.0,2319.7,2.5084]
[1726568570008,0.07955062,2319.8,2319.7,2.5084]
[1726568570194,7.31037,2320.0,2319.7,2.5084]
[1726568570437,0.07952946,2319.8,2319.7,2.5084]
[1726568570631,7.31037,2320.0,2319.7,2.5084]
[1726568570835,0.07952946,2319.8,2319.7,2.5084]
[1726568571030,7.31037,2320.0,2319.7,2.5084]
[1726568571337,0.07952946,2319.8,2319.7,2.5084]
[1726568571536,7.31037,2320.0,2319.7,2.5084]
[1726568572137,0.07953967,2319.9,2319.7,2.5084]
[1726568574396,4.39006967,2319.9,2319.7,2.5084]
[1726568577392,0.07953967,2319.9,2319.7,2.5084]
[1726568577594,0.07953967,2319.9,2319.8,4.31071]
[1726568577889,7.47974751,2320.3,2320.0,2.3716]
[1726568578076,4.30991,2320.3,2320.0,2.3716]
[1726568578290,3.16983751,2320.4,2320.0,2.3716]
[1726568578465,4.30961,2320.4,2320.0,11.3154047]
[1726568578632,4.30944,2320.5,2320.1,4.31015]
[1726568580172,4.30964,2320.4,2320.0,6.9191]
[1726568580340,4.30964,2320.4,2320.0,6.68185]
[1726568580672,4.30964,2320.4,2320.0,2.3716]
[1726568580859,4.30979,2320.3,2320.0,2.3716]
[1726568581061,4.30964,2320.4,2320.0,6.68188]
[1726568581466,8.61934,2320.4,2320.0,2.3716]
[1726568581677,4.30964,2320.4,2320.0,6.68193]
[1726568581880,4.30983,2320.3,2320.0,2.3716]
[1726568582394,4.30983,2320.3,2319.8,4.31068]
[1726568582395,4.30999,2320.2,2319.8,4.31068]
[1726568584116,4.30999,2320.2,2319.8,4.31063]
[1726568584332,4.30999,2320.2,2319.8,4.31061]
[1726568585214,4.30999,2320.2,2319.8,8.62124]
[1726568585520,4.30999,2320.2,2319.8,4.31061]
[1726568586185,0.07697487,2320.1,2319.7,2.4977]
[1726568586392,4.31035,2320.0,2319.7,2.4977]
[1726568586590,4.38731466,2320.0,2319.7,2.4977]
[1726568587192,4.31061,2319.9,2319.7,2.4977]
[1726568587395,4.38756446,2319.9,2319.7,0.158]
[1726568588013,0.07695446,2319.9,2319.7,0.158]
[1726568588218,4.38755446,2319.9,2319.7,0.158]
[1726568589166,4.38757446,2319.9,2319.7,0.158]
[1726568589461,0.07695446,2319.9,2319.7,0.158]
[1726568589969,4.31071,2319.8,2319.7,0.158]
[1726568590129,9.56770029,2319.8,2319.7,0.158]
[1726568591558,5.25699029,2319.8,2319.7,0.158]
[1726568592746,0.07645284,2319.8,2319.7,0.158]
[1726568592949,0.07645284,2319.8,2319.7,2.4895]
[1726568593247,4.31046,2320.0,2319.7,2.4895]
[1726568593463,0.07631845,2319.8,2319.7,2.4895]
[1726568593992,8.62092,2320.0,2319.7,2.4895]
[1726568594128,0.0763425,2319.8,2319.7,2.4895]
[1726568594329,8.62092,2320.0,2319.7,2.4895]
[1726568594530,0.07635271,2319.9,2319.7,0.158]
[1726568598689,0.07635271,2319.9,2319.7,4.46888]
[1726568599780,0.07635271,2319.9,2319.8,2.3475]
[1726568600092,7.31019,2320.1,2319.8,2.3475]
[1726568600275,0.07635271,2319.9,2319.8,2.3475]
[1726568600476,7.31019,2320.1,2319.8,2.3475]
[1726568600683,0.07635271,2319.9,2319.8,2.3475]
[1726568601302,7.31019,2320.1,2319.8,2.3475]
[1726568601496,0.07619851,2319.9,2319.8,2.3475]
[1726568601649,11.62046,2320.1,2319.8,2.3475]
[1726568601854,0.07619851,2319.9,2319.8,2.3475]
[1726568602066,4.31035,2320.0,2319.8,2.3475]
[1726568602263,0.07619851,2319.9,2319.7,0.158]
[1726568602465,4.38674851,2319.9,2319.7,0.158]
[1726568603352,0.07619851,2319.9,2319.7,0.158]
[1726568608776,4.31071,2319.8,2319.7,0.158]
[1726568609004,4.38677837,2319.8,2319.7,0.158]
[1726568609175,0.07606837,2319.8,2319.7,0.158]
[1726568610594,4.38677837,2319.8,2319.7,0.158]
[1726568612193,0.07606837,2319.8,2319.7,0.158]
[1726568614446,4.38677837,2319.8,2319.7,0.158]
[1726568614632,0.07606837,2319.8,2319.7,0.158]
[1726568621144,4.38677837,2319.8,2319.7,0.158]